Cogmind - Beta 15 @@@ ROGUE MODE // 2025.06.04 @ 12:58:53 Player: Andru7428 Result: Destroyed by TC-U7T(R) with Subdweller Laser Performance ------------- Evolutions (0) 0 Regions Visited (2) 400 Robots Destroyed (34) 170 Value Destroyed (853) 853 Prototype IDs (0) 0 Alien Tech Used (0) 0 Bonus (0) 0 TOTAL SCORE: 1423 Bonus ------- None Cogmind --------- Core Integrity 0/250 Matter 148/300 Energy 78/100 System Corruption 0% Temperature Cool (6) Movement Rolling (110) Ox2 Location -10/Subcaves Parts ------- > --- POWER (1) -------- (None) > --- PROPULSION (2) --- Wheel > --- UTILITY (2) ------ Large Storage Unit Makeshift Light Armor Plating > --- WEAPON (2) ------- Makeshift Spear > --- INVENTORY (15) --- Subdweller Monowheel Humpback Seismic Detector Light Armor Plating Light Armor Plating Scrap Shield Authchip [Device] Authchip [Armor] Authchip [Weapon] Battle Rifle Subdweller Shrapnel Launcher Makeshift Hammer Peak State ------------ > --- POWER ------------ Ion Engine > --- PROPULSION ------- Light Treads Spiked Treads > --- UTILITY ---------- Large Storage Unit Makeshift Light Armor Plating > --- WEAPON ----------- Assault Rifle Makeshift Spear > --- INVENTORY -------- Light Ion Engine Light Treads Light Treads Wheel Humpback Seismic Detector Light Armor Plating Scrap Shield Authchip [Device] Authchip [Armor] Authchip [Weapon] Battle Rifle Makeshift Hammer [Rating: 17] Favorites ----------- Power Ion Engine Engine Ion Engine Propulsion Light Treads Treads Light Treads Wheel Subdweller Monowheel Utility Large Storage Unit Device Seismic Detector Storage Large Storage Unit Protection Makeshift Light Armor Plating Weapon Assault Rifle Energy Gun EM Pulse Gun Ballistic Gun Assault Rifle Launcher Subdweller Shrapnel Launcher Piercing Weapon Makeshift Spear Build | -11 -10 -10 ------- Run | Yrd Mat Sub Slots Evolved . | . . . Power . | . . . Propulsion . | . . . Utility . | . . . Weapon . | . . . Parts Attached 24 | 6 4 14 Power 2 | 1 . 1 Engine 2 | 1 . 1 Core . | . . . Reactor . | . . . Propulsion 9 | 2 1 6 Treads 6 | 2 1 3 Leg . | . . . Wheel 3 | . . 3 Hover . | . . . Flight . | . . . Utility 8 | 1 3 4 Device 2 | . 2 . Storage 2 | 1 1 . Processor . | . . . Hackware . | . . . Protection 4 | . . 4 Artifact . | . . . Weapon 5 | 2 . 3 Energy Gun 1 | . . 1 Energy Cannon . | . . . Ballistic Gun 2 | 2 . . Ballistic Cannon . | . . . Launcher 1 | . . 1 Special Weapon . | . . . Impact Weapon . | . . . Slashing Weapon . | . . . Piercing Weapon 1 | . . 1 Special Melee Weapon . | . . . Unidentified Prototypes . | . . . Parts Lost 7 | . . 7 Power 2 | . . 2 Propulsion 3 | . . 3 Utility . | . . . Weapon 2 | . . 2 Highest Loss Streak 3 | . . 3 To Critical Strikes 1 | . . 1 Average Backups 12 | 4 12 13 Power . | . 1 . Propulsion 2 | 3 2 2 Utility 7 | . 7 8 Weapon 1 | . 1 2 Tool/Special . | . . . Unused Backups 20 | . 9 11 Power . | . . . Propulsion 4 | . 4 . Utility 12 | . 4 8 Weapon 4 | . 1 3 Tool/Special . | . . . Average Slot Usage (%) 98 | . 98 99 Engine 13 | . 13 13 Treads 22 | . 27 19 Wheel 4 | . . 7 Device 12 | . 13 11 Storage 14 | . 14 14 Protection 1 | . . 2 Ballistic Gun 20 | . 27 15 Piercing Weapon 6 | . . 11 Peak Build Rating 17 | 6 9 17 Average Rating 11 | 5 8 13 On Entrance 5 | . 6 9 Naked Turns . | . . . Heaviest Build 34 | 14 30 34 Greatest Support 40 | 40 40 40 Greatest Overweight (x) 3 | . . 3 Average Overweight (x) . | . . . Largest Inventory Capacity 15 | 8 15 15 Average Capacity 14 | 7 13 15 Most Carried 15 | 6 15 15 Average Carried 13 | 4 12 14 Final Capacity 15 | 8 15 15 Final Carried 15 | 6 15 14 Class Distribution -------------------- 100% | Mutant Dominant Class ---------------- Mutant | -10/Materials Mutant | -10/Subcaves Resources | -11 -10 -10 ----------- Run | Yrd Mat Sub Matter Collected 1241 | 314 566 361 Remotely . | . . . Salvage Created 1189 | 156 589 444 Parts 82 | 10 39 33 Haulers Intercepted 2 | . 2 . Recyclers Shooed . | . . . Parts Field Recycled . | . . . Retrieved Matter . | . . . Parts Self-Destructed 6 | . . 6 Prevented 1 | . . 1 Kills | -11 -10 -10 ------- Run | Yrd Mat Sub Combat Hostiles Destroyed 24 | . 11 13 Melee 9 | . . 9 Guns 12 | . 11 1 AOE 3 | . . 3 Classes Destroyed 8 | 2 5 1 Worker 1 | . 1 . Tunneler 3 | 2 1 . Hauler 2 | . 2 . Recycler 2 | 1 1 . Watcher 2 | . 2 . Swarmer 6 | . 6 . Grunt 6 | . 5 1 Subdweller 12 | . . 12 Best Kill Streak 3 | 3 3 3 Combat Bots Only 3 | . 3 3 Max Kills in Single Turn 2 | 1 2 1 Gunslinging 1 | . 1 . Exploded 1 | . . 1 Melee 1 | . . 1 Uniques/NPCs Destroyed . | . . . Combat | -11 -10 -10 -------- Run | Yrd Mat Sub Hostile Shots Fired 124 | . 49 75 Missed 32 | . 17 15 Hits 92 | . 32 60 Projectile 92 | . 32 60 AOE 3 | . . 3 Critical Strikes 3 | . 2 1 Damage Taken 1901 | . 293 1608 Core 267 | . 18 249 Absorbed by Shields . | . . . Regen/Repaired (Parts) 199 | . 199 . Core Remaining (%) 100 | 100 . . Volleys Fired 74 | 9 52 13 Largest 2 | 2 2 2 Hottest 60 | 40 40 60 Shots Fired 139 | 18 104 17 Gun 130 | 18 104 8 Cannon . | . . . Launcher 9 | . . 9 Special . | . . . Kinetic 135 | 18 104 13 Thermal . | . . . Explosive . | . . . Electromagnetic 4 | . . 4 Robot Hit Streak 10 | 4 10 8 Robot Miss Streak 5 | 2 5 2 Penetration Max . | . . . Secondary Targets 3 | . 3 . Max Gunslinging Chain 1 | . 1 . Shots Hit Robots 112 | 11 61 40 Core Hits 49 | 4 27 18 Critical Kills 2 | 1 1 . Critical Parts Destroyed . | . . . Critical Strikes 6 | 1 1 4 Destroy 2 | 1 1 . Impale 4 | . . 4 Melee Attacks 65 | . . 65 Impact . | . . . Slashing . | . . . Piercing 65 | . . 65 Sneak Attacks . | . . . Combat Hostiles . | . . . Follow-up Attacks . | . . . Damage Inflicted 2441 | 137 747 1557 Guns 940 | 137 745 58 Cannons . | . . . Explosions 578 | . . 578 Melee 921 | . . 921 Ramming 2 | . 2 . Kinetic 1475 | 137 745 593 Thermal . | . . . Explosive . | . . . Electromagnetic 43 | . . 43 Impact . | . . . Slashing . | . . . Piercing 921 | . . 921 Highest Corruption . | . . . Average Corruption . | . . . Corruption Purged . | . . . Corruption Blocked . | . . . Overload Shots . | . . . Overflow Damage 1 | . . 1 Projectiles . | . . . Explosions 1 | . . 1 Melee . | . . . Knockbacks . | . . . Impact . | . . . Kinetic . | . . . Secondary . | . . . Self-Inflicted Damage 163 | . . 163 Shots 4 | . . 4 Rammed 2 | . 2 . Targets Rammed 2 | . 2 . Kicked . | . . . Crushed . | . . . Highest Temperature 20 | . 20 . Average Temperature 12 | . 12 . Received Heat Transfer 405 | . 81 324 Siege Activations . | . . . Martial Activations . | . . . Shielding Activations . | . . . Robots Disrupted . | . . . Combat Hostiles . | . . . Robots Corrupted . | . . . Combat Hostiles . | . . . Parts Fried . | . . . Impact Corruptions . | . . . Robots Melted . | . . . Combat Hostiles . | . . . Parts Melted . | . . . Heat Transferred . | . . . Parts Sabotaged . | . . . Parts Stolen . | . . . Parts Stripped . | . . . Power Chain Reactions . | . . . Alert | -11 -10 -10 ------- Run | Yrd Mat Sub Maximum Alert Level . | . . . Low Security (%) 100 | 100 100 . Level 1 . | . . . Level 2 . | . . . Level 3 . | . . . Level 4 . | . . . Level 5 . | . . . High Security . | . . . Max Security . | . . . Peak Influence 128 | 10 128 . Initial . | . . . Average 27 | 1 29 . Influence Increases 433 | 15 388 30 Destroy 0b10 Robot/C 240 | . 220 20 Destroy 0b10 Robot/NC 50 | 15 35 . Destroy Leader 68 | . 58 10 Successful Hack 13 | . 13 . Select Force Hacks 30 | . 30 . Destroy Structure 2 | . 2 . Lose Combat Pursuer 30 | . 30 . Influence Decreases 433 | 15 388 30 Time Decay 433 | 15 388 30 Squads Dispatched 1 | . 1 . Investigation 1 | . 1 . Extermination . | . . . Reinforcement . | . . . Assault . | . . . Garrison . | . . . Intercept . | . . . Searches Triggered . | . . . Construction Impeded . | . . . Haulers Reinforced . | . . . Active Scanning Responses . | . . . Cargo Convoy Interrupts . | . . . Stealth | -11 -10 -10 --------- Run | Yrd Mat Sub Distress Signals 3 | . 3 . Communications Jammed . | . . . Distress Signals . | . . . Times Spotted 42 | . 28 14 Peak Tracking Total 6 | . 6 2 Tactical Retreats 1 | . 1 . Traps | -11 -10 -10 ------- Run | Yrd Mat Sub Traps Triggered . | . . . Indirectly . | . . . Trap Hack Attempts . | . . . Triggered . | . . . Disarmed . | . . . Reprogrammed . | . . . Reused . | . . . Traps Extracted . | . . . Installed . | . . . Triggered . | . . . Machines | -11 -10 -10 ---------- Run | Yrd Mat Sub Machines Disabled . | . . . Max in Single Turn . | . . . Machines Repaired . | . . . Machines Dismantled . | . . . Machines Sabotaged . | . . . Overloaded Fab Kills . | . . . Hacking | -11 -10 -10 --------- Run | Yrd Mat Sub Machines Accessed 8 | . 8 . Terminals 6 | . 6 . Fabricators . | . . . Repair Stations 1 | . 1 . Recycling Units 1 | . 1 . Scanalyzers . | . . . Garrison Access . | . . . Total Hacks 32 | . 32 . Successful 19 | . 19 . Failed 13 | . 13 . Catastrophic 1 | . 1 . Database Lockouts . | . . . Manual 18 | . 18 . Terminals 18 | . 18 . Fabricators . | . . . Repair Stations 13 | . 13 . Recycling Units 1 | . 1 . Scanalyzers . | . . . Garrison Access . | . . . Terminal Hacks 1 | . 1 . Locate Traps 1 | . 1 . Fabricator Hacks . | . . . Repair Station Hacks 11 | . 11 . Scan Component 6 | . 6 . Repair 5 | . 5 . Recycling Unit Hacks . | . . . Scanalyzer . | . . . Garrison Access Hacks . | . . . Unauthorized Hacks 7 | . 7 . Terminals 6 | . 6 . Botnet 2 | . 2 . Skim 4 | . 4 . Fabricators . | . . . Repair Stations . | . . . Recycling Units 1 | . 1 . Tunnel 1 | . 1 . Scanalyzers . | . . . Garrison Access . | . . . Data Cores Recovered . | . . . Used . | . . . Hacking Detections 6 | . 6 . Full Trace Events 1 | . 1 . Feedback Events . | . . . Feedback Blocked . | . . . Robot Schematics Acquired . | . . . Robots Built . | . . . Authchips . | . . . Time . | . . . Total Robot Build Rating . | . . . Part Schematics Acquired . | . . . Parts Built . | . . . Authchips . | . . . Time . | . . . Total Part Build Rating . | . . . Parts Repaired 5 | . 5 . Time 130 | . 130 . Parts Recycled . | . . . Recycled Matter . | . . . Retrieved Matter . | . . . Retrieved Components . | . . . Parts Scanalyzed . | . . . Part Schematics Acquired . | . . . Parts Damaged . | . . . Bothacking | -11 -10 -10 ------------ Run | Yrd Mat Sub Used RIF Installer . | . . . Robots Hacked . | . . . Non-combat . | . . . Combat . | . . . Robot Hacks Applied . | . . . Relay Couplers Released . | . . . Fabnet Peak Effective % . | . . . Robots Rewired . | . . . Allies Hacked . | . . . Hacks Repelled . | . . . Allies | -11 -10 -10 -------- Run | Yrd Mat Sub Total Allies . | . . . Largest Group . | . . . Highest-Rated Group . | . . . Highest-Rated Ally . | . . . Total Orders . | . . . Ally Attacks . | . . . Total Damage . | . . . Kills . | . . . Allies Corrupted . | . . . Allies Melted . | . . . Intel | -11 -10 -10 ------- Run | Yrd Mat Sub Active Infowar (turns) 3597 | . 1547 2050 Seismic 3597 | . 1547 2050 Robot Analysis Total . | . . . Derelict Logs Recovered 2 | . . 2 Drone Launches . | . . . Drone Recoveries . | . . . Exploration | -11 -10 -10 ------------- Run | Yrd Mat Sub Turns Passed 4148 | 121 1590 2437 Spaces Moved 2334 | 54 778 1502 Core 6 | 6 . . Treads 1775 | 48 778 949 Legs . | . . . Wheels 553 | . . 553 Hover . | . . . Flight . | . . . Fastest Speed 50 | 50 160 110 Average Speed 148 | 147 160 143 Slowest Speed 240 | 160 160 240 Overloaded Moves . | . . . Propulsion Burnouts . | . . . Robots Hopped . | . . . Potential Cave-ins 2 | . . 2 Cave-ins Triggered . | . . . Exploration Rate (%) 56 | 5 77 88 Regions Visited 2 Branch Regions 1 Pre-discovered Areas 2 | . 1 1 Known Exits Taken . | . . . Unknown Exits Taken 2 | 1 1 . Scrap Searched 5 | . . 5 Spaces Dug 7 | . . 7 Terrain Destroyed 84 | . . 84 Melee 7 | . . 7 Projectile . | . . . AOE 77 | . . 77 Terrain Rammed . | . . . Walls Destroyed . | . . . Machines Disabled . | . . . Actions | -11 -10 -10 --------- Run | Yrd Mat Sub Total 2789 | 74 1022 1693 Wait 215 | . 149 66 Move 2332 | 53 777 1502 Hop . | . . . Pick Up 33 | 6 20 7 Fast Attach 13 | 6 6 1 Attach 3 | . . 3 Detach . | . . . Swap 30 | . 3 27 Drop 22 | . 13 9 Fire 74 | 9 52 13 Melee 65 | . . 65 Ram . | . . . Kick . | . . . Crush 2 | . 2 . Escape Stasis . | . . . Rewire . | . . . Trap . | . . . Miscellaneous . | . . . Route ------- -11/Scrapyard -10/Materials (discovered 5 exits: [*Mat x2] / [*Min x2] / [*Sub]) -10/Subcaves (discovered 3 exits: [*Mat x2] / Rec) History --------- Turn | Location | Event 24 | -11/Scrapyard | Discovered new exit (range 16) 122 | -11/Scrapyard | Entered Materials 122 | -10/Materials | Discovered new exit (range 8) 314 | -10/Materials | Build established: Mutant 462 | -10/Materials | Discovered new exit (range 8) 719 | -10/Materials | Discovered new exit (range 4) 862 | -10/Materials | Discovered new exit (range 16) 1483 | -10/Materials | Repaired Assault Rifle 1510 | -10/Materials | Repaired Assault Rifle 1538 | -10/Materials | Repaired Lgt. Treads 1565 | -10/Materials | Repaired Ion Engine 1593 | -10/Materials | Repaired Lgt. Treads 1701 | -10/Materials | Discovered new exit (range 9) 1712 | -10/Materials | Entered Subcaves 1851 | -10/Subcaves | Shifting Twisted Machinery released Sub. Machine Gun 1872 | -10/Subcaves | Shifting Twisted Machinery released Mak. Spear 2163 | -10/Subcaves | A swath of the cavern ceiling suddenly collapsed 2182 | -10/Subcaves | A Subdweller sparked back to life 2201 | -10/Subcaves | Shifting Twisted Machinery released Battle Rifle 2207 | -10/Subcaves | Shifting Twisted Machinery released Scrap Shield 2229 | -10/Subcaves | Discovered new exit (range 11) 2474 | -10/Subcaves | Learned location of Zion (-7) 2474 | -10/Subcaves | Met a Zionite searching for "candidates" 2977 | -10/Subcaves | Shifting Twisted Machinery released Battle Cannon 2981 | -10/Subcaves | Shifting Twisted Machinery released Flamer 3226 | -10/Subcaves | Learned Materials interactive machine intel 3409 | -10/Subcaves | Ambushed by Subdweller buried in earth 3429 | -10/Subcaves | Ambushed by Subdweller buried in earth 3442 | -10/Subcaves | Lost 3 parts (1p2n) 3528 | -10/Subcaves | Discovered new exit (range 14) 4016 | -10/Subcaves | Identified exit to Recycling 4127 | -10/Subcaves | Ambushed by Subdwellers from Twisted Machinery 4131 | -10/Subcaves | Core integrity fell below 50% 4132 | -10/Subcaves | Ambushed by Subdweller buried in earth 4137 | -10/Subcaves | Core integrity fell below 20% 4149 | -10/Subcaves | Destroyed by TC-U7T(R) with Subdweller Laser Last Messages --------------- 03572_ Acquired Lgt. Armor Plating. 03654_ Acquired 9 matter. 03871_ Sub. Monowheel shoots sparks and powers down. 04016_ Acquired derelict log, extracted data. Loading 1 Subcaves exit... 04027_ SR-N1I(R) destroyed. 04029_ Acquired 48 matter. 04062_ Acquired 5 matter. 04127_ 9W-UE3(R) emerges from the Twisted Machinery. 04130_ Lgt. Ion Engine destroyed. 04130_ Destroyed Lgt. Ion Engine. 04132_ YT-6FK(R) destroyed. 04133_ TC-U7T(R): "ARGHSUB!" 04136_ Destroyed Scrap Shield. 04136_ 9W-UE3(R) destroyed. 04136_ Broken Sub. Monowheel destroyed. 04136_ Destroyed Broken Sub. Monowheel. 04139_ Assault Rifle destroyed. Map ----- +----------------------------------------------------+ | ### #### ##?????????????????????????????# | | ##?# #???###??????????????????????????????# | | #### #########????????????????????????????? | | ## ## #?????????????????????????????#### | | #### #?????????????????????????????????? | | ### ##?????????????????????????????????# | | ### ##??????????????????????????????????? | | ### ###??????????????????????????????##?? | | ## ### #????????????????????????????### ? | | #????????????????????????????# ? | | ##???????????????????????????## ? | | ##### ##????????????????????????????# ? | | #????#### ####???????????????????????????###" # | | ##??????###????????????????????????????# #"" | | #?????????????????????????????????????? | | #???????????????????##????????????????????????# | | ##?????#???? "?????## ????????????????????????## | | #????? ????? ""#??## ?????????????????????????## | | ##??? #?????? #?# #######??????????????????## | | ##? #???????" ## # #??????????????????# | | ## ????? ??"" ; ???????????????????# | | # ???# """ ; #??????????????##???## | | ??? " ##?????????????# ## | | ???? #?????????????# | | ## # ?????????# % #?????????????# | | ##?????????????# [ @R #?????????????# | | ###???????????### #?????????????## # | | ####??????????#; ;#??????????????## ? | | #??????????# #???????????????# ? | | ##??????????##"## #???????????????# ? | | ##????????###"""" ####??????????????? ?? | | #?##?????# "" #?????????????????# ?? | | #### ## #?????# # # #?????????????????#"" ?? | | ???## #?????#??#### ##????###??????????#""?"" | | ???## ####### #?## "#?#### ##??####????? ?"" | | #### ### ### # ##?# #?####?## | | ### ### ### | | "" ## " | | ### " # # #" | | ##??# ### "" ### "" | | ##???? #?# " " #?# """ | | #??? "#?##" "###### ##"#" | | ## ###??#" "#????# ### ## #?## | | #????####?????## #### ### ### | | #?????########## #?### ####"" | | ## ##?????# ## # # "# ##???####?#"""" | | ### #?????## # ##????????#"""""" "" | | #?# #?????# ####?????????# """""""" | | #### #????## ## # #????????????##"""" | | ###?# ##### #####?????????????## | +----------------------------------------------------+ Best States ------------- Heat Dissipation 25 Energy Generation 10 Energy Capacity 250 Matter Stores 300 Matter Capacity 300 Sight Range 16 Terrain Scan Density 10 Armor Coverage 150 Evasion (%) 40 Recoil Reduction 2 Authchip Count 4 Item Schematics ----------------- None Robot Schematics ------------------ None Fabricated ------------ Nothing Repaired ---------- Assault Rifle | 44% | -10/Materials Assault Rifle | 65% | -10/Materials Lgt. Treads | 66% | -10/Materials Ion Engine | 45% | -10/Materials Lgt. Treads | 80% | -10/Materials Alien Tech Used ----------------- None Achievements -------------- None Challenges ------------ None Game ------ Seed HelicalImpulseDrivehammer Manual? 0 Play Time 00:23:23 Cumulative 352.1 hours Start 2025.06.04 @ 12:32:03 End 2025.06.04 @ 12:58:53 Sessions 1 Manual Loads 0 Difficulty Rogue Special Mode None Game No. 223 Rogue 223 Adventurer 0 Explorer 0 Win Type - Total 6 Types 6/0/0/0/0/0/0/0/0/0 Lore% 74 Gallery% 73 Achievement% 66 Wizard Run 0 Options --------- Layout 1 ASCII 0 Keyboard 1 Movement Numpad Keybinds 0 Fullscreen 2 Font 24/Smallcaps Map View 50x35 Zoom Use 0% Tactical HUD 1 Map Filters NONE Filters NONE Steam 1 RUN: c83fc5ec-3d86-4fa0-9472-a6a3e5f04ad7